Cogmind - Beta 14 @@@ ROGUE MODE // 2025.01.06 @ 22:56:02 Player: acra Result: Destroyed by P-60 Hacker with Shock Rifle Performance ------------- Evolutions (3) 1500 Regions Visited (6) 1200 Robots Destroyed (62) 310 Value Destroyed (2266) 2266 Prototype IDs (2) 40 Alien Tech Used (0) 0 Bonus (211) 211 TOTAL SCORE: 5527 Bonus ------- High Alert Combat Kills 178 Follower Combat Kills 33 Cogmind --------- Core Integrity 0/700 Matter 300/300 Energy 111/290 System Corruption 6% Temperature Cool (0) Movement Walking (125) Location -7/Storage Parts ------- > --- POWER (1) -------- Improved Deuterium Engine > --- PROPULSION (2) --- Carbon-fiber Leg Titanium Leg > --- UTILITY (8) ------ Medium Storage Unit Gravity Neutralizer Structural Scanner Visual Processing Unit Advanced Visual Processing Unit Improved Sensor Array Signal Interpreter Improved Signal Interpreter > --- WEAPON (2) ------- Particle Gun Spread Laser > --- INVENTORY (10) --- Light Ion Engine Aluminum Leg Compact Wheel Visual Processing Unit Spread Laser Heavy Rocket Launcher Improved Datajack Mining Claw Peak State ------------ > --- POWER ------------ Improved Deuterium Engine > --- PROPULSION ------- Titanium Leg Titanium Leg > --- UTILITY ---------- Improved Heat Sink Medium Storage Unit Visual Processing Unit Advanced Visual Processing Unit Improved Sensor Array Signal Interpreter Improved Signal Interpreter Improved Terrain Scanner > --- WEAPON ----------- Heavy Particle Cannon Flak Gun > --- INVENTORY -------- Deuterium Engine Titanium Leg Compact Wheel Visual Processing Unit Hardened Medium Armor Plating Arc Projector Gatling Laser Heavy Rocket Launcher Improved Datajack Mining Claw [Rating: 38] Favorites ----------- Power Deuterium Engine Engine Deuterium Engine Power Core Light Nuclear Core Propulsion Aluminum Leg Leg Aluminum Leg Wheel Compact Wheel Utility Medium Storage Unit Device Improved Heat Sink Storage Medium Storage Unit Processor Signal Interpreter Hackware Hacking Suite Protection Hardened Medium Armor Plating Weapon Particle Gun Energy Gun Particle Gun Energy Cannon Heavy Particle Cannon Ballistic Gun Assault Rifle Ballistic Cannon Flak Cannon Launcher Heavy Rocket Launcher Build | -11 -10 -10 -9 -8 -7 -7 ------- Run | Yrd Mat Min Mat Mat Fac Sto Slots Evolved 6 | . . . 2 2 2 . Power . | . . . . . . . Propulsion . | . . . . . . . Utility 6 | . . . 2 2 2 . Weapon . | . . . . . . . Parts Attached 86 | 9 2 1 11 22 12 29 Power 11 | 1 . . 2 2 2 4 Engine 9 | 1 . . 2 1 2 3 Core 2 | . . . . 1 . 1 Reactor . | . . . . . . . Propulsion 21 | 4 . . 1 4 3 9 Treads . | . . . . . . . Leg 18 | 3 . . 1 4 2 8 Wheel 3 | 1 . . . . 1 1 Hover . | . . . . . . . Flight . | . . . . . . . Utility 27 | 2 1 . 4 8 5 7 Device 15 | 1 . . 2 4 3 5 Storage 2 | 1 1 . . . . . Processor 4 | . . . 1 1 2 . Hackware 1 | . . . . 1 . . Protection 5 | . . . 1 2 . 2 Artifact . | . . . . . . . Weapon 27 | 2 1 1 4 8 2 9 Energy Gun 14 | . 1 1 1 5 . 6 Energy Cannon 2 | . . . . 1 . 1 Ballistic Gun 9 | 2 . . 3 2 1 1 Ballistic Cannon 1 | . . . . . 1 . Launcher 1 | . . . . . . 1 Special Weapon . | . . . . . . . Impact Weapon . | . . . . . . . Slashing Weapon . | . . . . . . . Piercing Weapon . | . . . . . . . Special Melee Weapon . | . . . . . . . Unidentified Prototypes 2 | . . . 1 . . 1 Corrupted Parts 3 | . . . 1 1 . 1 System Corruption 5 | . . . 1 1 . 3 Parts Lost 33 | . . . 1 12 3 17 Power 4 | . . . . 1 . 3 Propulsion 6 | . . . . 3 . 3 Utility 10 | . . . 1 3 2 4 Weapon 13 | . . . . 5 1 7 Highest Loss Streak 6 | . . . 1 5 2 6 To Critical Strikes . | . . . . . . . Average Slot Usage (%) 96 | . 100 100 93 93 98 96 Engine 8 | . 14 14 11 6 7 4 Core 1 | . . . . 2 . 1 Leg 17 | . 28 28 22 15 13 14 Device 20 | . 14 14 16 30 22 15 Storage 9 | . 14 14 11 9 7 7 Processor 16 | . . . 8 10 28 30 Protection 1 | . . . 2 . . 4 Energy Gun 8 | . 8 14 11 11 1 8 Energy Cannon 2 | . . . . 2 7 2 Ballistic Gun 5 | . 19 14 11 2 . 2 Ballistic Cannon 1 | . . . . . 5 . Peak Build Rating 38 | 7 7 9 19 24 38 38 Average Rating 22 | 5 6 8 12 20 33 32 On Entrance 14 | . 7 7 9 19 24 38 Naked Turns . | . . . . . . . Heaviest Build 40 | 14 20 21 30 32 34 40 Greatest Support 44 | 20 20 20 20 20 34 44 Greatest Overweight (x) 9 | 1 . 1 1 9 3 3 Average Overweight (x) . | . . . 1 1 . . Largest Inventory Capacity 10 | 8 10 10 10 10 10 10 Average Capacity 9 | 7 9 10 10 10 10 10 Most Carried 10 | 3 7 10 10 10 10 10 Average Carried 8 | 1 3 9 9 8 9 8 Final Capacity 10 | 8 10 10 10 10 10 10 Final Carried 10 | 2 7 10 10 10 10 8 Class Distribution -------------------- 61% | Scavenger-Mutant 24% | Mutant 13% | Scavenger-Skirmisher Dominant Class ---------------- Mutant | -10/Materials Mutant | -10/Mines Scavenger-Mutant | -9/Materials Scavenger-Mutant | -8/Materials Scavenger-Mutant | -7/Factory Scavenger-Mutant | -7/Storage Resources | -11 -10 -10 -9 -8 -7 -7 ----------- Run | Yrd Mat Min Mat Mat Fac Sto Matter Collected 1416 | 274 41 51 72 327 136 515 Remotely 50 | . . . . 50 . . Salvage Created 2182 | 34 41 . 134 615 200 1158 Parts 131 | 5 5 . 11 44 10 56 Haulers Intercepted 1 | . . . . . . 1 Recyclers Shooed 5 | . . . 1 1 2 1 Parts Field Recycled . | . . . . . . . Retrieved Matter . | . . . . . . . Parts Self-Destructed . | . . . . . . . Prevented . | . . . . . . . Kills | -11 -10 -10 -9 -8 -7 -7 ------- Run | Yrd Mat Min Mat Mat Fac Sto Combat Hostiles Destroyed 46 | . . . 2 15 6 23 Guns 30 | . . . 2 14 . 14 Cannons 11 | . . . . 1 5 5 AOE 4 | . . . . . 1 3 Classes Destroyed 13 | 1 2 . 1 6 2 1 Worker 1 | . . . . 1 . . Builder 3 | . . . . 1 . 2 Tunneler 2 | 2 . . . . . . Hauler 1 | . . . . . . 1 Recycler 2 | . . . . 1 . 1 Operator 3 | . 1 . . 1 . 1 Watcher 4 | . 1 . 1 . 1 1 Swarmer 8 | . . . . 7 1 . Grunt 20 | . . . . 5 1 14 Duelist 3 | . . . . . 2 1 Sentry 9 | . . . 2 2 . 5 Hunter 3 | . . . . 1 . 2 Programmer 3 | . . . . . 2 1 Best Kill Streak 8 | 1 1 . 1 8 3 5 Combat Bots Only 7 | . . . 1 7 3 5 Max Kills in Single Turn 2 | 1 1 . 1 2 1 2 Gunslinging 1 | . . . . 1 . . Exploded 2 | . . . . . 1 2 Melee . | . . . . . . . Uniques/NPCs Destroyed . | . . . . . . . Combat | -11 -10 -10 -9 -8 -7 -7 -------- Run | Yrd Mat Min Mat Mat Fac Sto Hostile Shots Fired 523 | . . 4 16 146 53 304 Missed 151 | . . 1 8 31 12 99 Damage Taken 5043 | . . 43 121 1430 941 2508 Core 992 | . . . . 284 311 397 Absorbed by Shields . | . . . . . . . Regen/Repaired (Parts) 65 | . . . . 65 . . Core Remaining (%) 87 | 100 . 100 100 48 . . Volleys Fired 194 | 7 4 2 9 68 26 78 Largest 2 | 2 2 2 2 2 2 2 Hottest 145 | 40 60 60 98 131 131 145 Shots Fired 368 | 14 8 4 18 121 53 150 Gun 284 | 14 8 4 18 116 10 114 Cannon 82 | . . . . 5 43 34 Launcher 2 | . . . . . . 2 Special . | . . . . . . . Kinetic 130 | 14 4 2 9 45 19 37 Thermal 215 | . . . 9 69 34 103 Explosive 2 | . . . . . . 2 Electromagnetic 21 | . 4 2 . 7 . 8 Robot Hit Streak 17 | 4 2 2 17 9 12 13 Robot Miss Streak 7 | 2 2 2 . 4 7 6 Penetration Max . | . . . . . . . Secondary Targets 4 | . . . . 3 . 1 Max Gunslinging Chain 1 | . . . . 1 . 1 Shots Hit Robots 257 | 8 4 2 15 75 39 114 Core Hits 179 | 3 3 3 5 32 24 109 Critical Kills . | . . . . . . . Critical Parts Destroyed . | . . . . . . . Critical Strikes 8 | . . . 1 4 . 3 Burn 8 | . . . 1 4 . 3 Melee Attacks . | . . . . . . . Impact . | . . . . . . . Slashing . | . . . . . . . Piercing . | . . . . . . . Sneak Attacks . | . . . . . . . Combat Hostiles . | . . . . . . . Follow-up Attacks . | . . . . . . . Damage Inflicted 5053 | 81 66 33 242 1176 1004 2451 Guns 3219 | 81 66 25 242 1101 75 1629 Cannons 1370 | . . . . 75 814 481 Explosions 454 | . . . . . 114 340 Melee . | . . . . . . . Ramming 10 | . . 8 . . 1 1 Kinetic 1496 | 81 24 12 104 323 376 576 Thermal 2998 | . . . 138 772 627 1461 Explosive 340 | . . . . . . 340 Electromagnetic 209 | . 42 13 . 81 . 73 Impact . | . . . . . . . Slashing . | . . . . . . . Piercing . | . . . . . . . Highest Corruption 6 | . . . 1 1 2 6 Average Corruption 1 | . . . 1 1 1 2 Corruption Purged . | . . . . . . . Corruption Blocked . | . . . . . . . Effects 20 | . . . . 7 3 10 Message Errors 5 | . . . . 3 . 2 Matter Fused 2 | . . . . 1 1 . Heat Flow Errors 1 | . . . . . . 1 Energy Discharges 3 | . . . . . 1 2 Data Loss (minor) 3 | . . . . 1 . 2 Data Loss (major) 2 | . . . . 1 . 1 Misfires 2 | . . . . 1 1 . Alerts 1 | . . . . . . 1 Weapon Failures 1 | . . . . . . 1 Overload Shots . | . . . . . . . Overflow Damage 3 | . . . . . 3 . Projectiles 3 | . . . . . 3 . Explosions . | . . . . . . . Melee . | . . . . . . . Knockbacks 10 | . . . . . 10 . Impact . | . . . . . . . Kinetic 10 | . . . . . 10 . Secondary . | . . . . . . . Self-Inflicted Damage 208 | . . . . . 146 62 Shots 4 | . . . . . 2 2 Rammed . | . . . . . . . Targets Rammed 6 | . . 4 . . 1 1 Kicked 6 | . . 4 . . 1 1 Crushed . | . . . . . . . Highest Temperature 372 | . . 18 72 372 21 354 Average Temperature 97 | . . 10 28 135 18 92 Received Heat Transfer 1653 | . . 27 45 531 51 999 Effects 4 | . . . . . . 4 Interference 3 | . . . . . . 3 Damage (minor) 1 | . . . . . . 1 Siege Activations . | . . . . . . . Robots Corrupted . | . . . . . . . Combat Hostiles . | . . . . . . . Parts Fried . | . . . . . . . Impact Corruptions . | . . . . . . . Robots Melted 1 | . . . . . . 1 Combat Hostiles 1 | . . . . . . 1 Parts Melted 16 | . . . 3 5 1 7 Heat Transferred 6158 | . . . 370 1924 827 3037 Parts Sabotaged . | . . . . . . . Parts Stolen . | . . . . . . . Parts Stripped . | . . . . . . . Power Chain Reactions . | . . . . . . . Alert | -11 -10 -10 -9 -8 -7 -7 ------- Run | Yrd Mat Min Mat Mat Fac Sto Peak Influence 627 | 10 18 6 115 242 234 627 Initial 65 | . 6 6 . . 6 65 Average 125 | 3 9 4 44 113 67 361 Maximum Alert Level 2 | . . . . 1 1 2 Low Security (%) 75 | 100 100 100 100 81 83 23 Level 1 15 | . . . . 18 16 36 Level 2 8 | . . . . . . 40 Level 3 . | . . . . . . . Level 4 . | . . . . . . . Level 5 . | . . . . . . . High Security . | . . . . . . . Max Security . | . . . . . . . Squads Dispatched 13 | . 1 . . 2 3 7 Investigation 2 | . . . . 1 . 1 Extermination 4 | . . . . . 2 2 Reinforcement 7 | . 1 . . 1 1 4 Assault . | . . . . . . . Garrison . | . . . . . . . Intercept . | . . . . . . . Searches Triggered . | . . . . . . . Construction Impeded 2 | . . . . . . 2 Haulers Reinforced 1 | . . . . . . 1 Active Scanning Responses . | . . . . . . . Cargo Convoy Interrupts . | . . . . . . . Stealth | -11 -10 -10 -9 -8 -7 -7 --------- Run | Yrd Mat Min Mat Mat Fac Sto Distress Signals 9 | . . . . 6 . 3 Communications Jammed . | . . . . . . . Distress Signals . | . . . . . . . Times Spotted 85 | . 3 3 4 29 10 36 Peak Tracking Total 10 | . 1 3 2 8 6 10 Tactical Retreats 6 | . . . . 1 1 4 Traps | -11 -10 -10 -9 -8 -7 -7 ------- Run | Yrd Mat Min Mat Mat Fac Sto Traps Triggered 3 | . . . . . 2 1 Indirectly . | . . . . . . . Trap Hack Attempts . | . . . . . . . Triggered . | . . . . . . . Disarmed . | . . . . . . . Reprogrammed . | . . . . . . . Reused . | . . . . . . . Traps Extracted . | . . . . . . . Installed . | . . . . . . . Triggered . | . . . . . . . Machines | -11 -10 -10 -9 -8 -7 -7 ---------- Run | Yrd Mat Min Mat Mat Fac Sto Machines Disabled 11 | . . . . . 7 4 Max in Single Turn 7 | . . . . . 7 2 Machines Repaired . | . . . . . . . Machines Dismantled . | . . . . . . . Machines Sabotaged . | . . . . . . . Overloaded Fab Kills . | . . . . . . . Hacking | -11 -10 -10 -9 -8 -7 -7 --------- Run | Yrd Mat Min Mat Mat Fac Sto Machines Accessed 18 | . . . 3 5 7 3 Terminals 10 | . . . 3 3 2 2 Fabricators 1 | . . . . . 1 . Repair Stations 4 | . . . . 1 2 1 Recycling Units 2 | . . . . 1 1 . Scanalyzers . | . . . . . . . Garrison Access 1 | . . . . . 1 . Total Hacks 32 | . . . 5 12 10 5 Successful 16 | . . . 3 8 4 1 Failed 16 | . . . 2 4 6 4 Catastrophic 6 | . . . 1 . 3 2 Database Lockouts . | . . . . . . . Manual 9 | . . . 1 4 2 2 Terminals 21 | . . . 5 8 4 4 Fabricators 1 | . . . . . 1 . Repair Stations 7 | . . . . 3 3 1 Recycling Units 2 | . . . . 1 1 . Scanalyzers . | . . . . . . . Garrison Access 1 | . . . . . 1 . Terminal Hacks 10 | . . . 3 5 1 1 Record 1 | . . . 1 . . . Open Door 1 | . . . . . . 1 Branch Access Points 1 | . . . 1 . . . Terminal Index 1 | . . . . 1 . . Repair Station Index 1 | . . . . 1 . . Alert Level 2 | . . . . 1 1 . Locate Traps 1 | . . . . 1 . . Dispatch Records 2 | . . . 1 1 . . Fabricator Hacks 1 | . . . . . 1 . Network Status 1 | . . . . . 1 . Repair Station Hacks 3 | . . . . 2 1 . Scan Component 2 | . . . . 1 1 . Repair 1 | . . . . 1 . . Recycling Unit Hacks 2 | . . . . 1 1 . Report Inventory 2 | . . . . 1 1 . Scanalyzer . | . . . . . . . Garrison Access Hacks . | . . . . . . . Unauthorized Hacks . | . . . . . . . Terminals . | . . . . . . . Fabricators . | . . . . . . . Repair Stations . | . . . . . . . Recycling Units . | . . . . . . . Scanalyzers . | . . . . . . . Garrison Access . | . . . . . . . Data Cores Recovered 1 | . . . . 1 . . Used 1 | . . . . 1 . . Hacking Detections 12 | . . . 2 3 5 2 Full Trace Events 2 | . . . . 1 . 1 Feedback Events 1 | . . . . . . 1 Corruption 1 | . . . . . . 1 Feedback Blocked . | . . . . . . . Robot Schematics Acquired . | . . . . . . . Robots Built . | . . . . . . . Authchips . | . . . . . . . Time . | . . . . . . . Total Robot Build Rating . | . . . . . . . Part Schematics Acquired . | . . . . . . . Parts Built . | . . . . . . . Authchips . | . . . . . . . Time . | . . . . . . . Total Part Build Rating . | . . . . . . . Parts Repaired 1 | . . . . 1 . . Time 26 | . . . . 26 . . Parts Recycled . | . . . . . . . Recycled Matter . | . . . . . . . Retrieved Matter . | . . . . . . . Retrieved Components . | . . . . . . . Parts Scanalyzed . | . . . . . . . Part Schematics Acquired . | . . . . . . . Parts Damaged . | . . . . . . . Bothacking | -11 -10 -10 -9 -8 -7 -7 ------------ Run | Yrd Mat Min Mat Mat Fac Sto Used RIF Installer . | . . . . . . . Robots Hacked . | . . . . . . . Non-combat . | . . . . . . . Combat . | . . . . . . . Robot Hacks Applied . | . . . . . . . Relay Couplers Released . | . . . . . . . Fabnet Peak Effective % . | . . . . . . . Robots Rewired . | . . . . . . . Allies Hacked . | . . . . . . . Hacks Repelled . | . . . . . . . Allies | -11 -10 -10 -9 -8 -7 -7 -------- Run | Yrd Mat Min Mat Mat Fac Sto Total Allies 1 | . . 1 . . . . Largest Group 1 | . . 1 1 . . . Highest-Rated Group 31 | . . 31 31 . . . Highest-Rated Ally 31 | . . 31 31 . . . Total Orders . | . . . . . . . Ally Attacks 5 | . . . 5 . . . Total Damage 85 | . . . 85 . . . Kills 1 | . . . 1 . . . Allies Corrupted . | . . . . . . . Allies Melted . | . . . . . . . Intel | -11 -10 -10 -9 -8 -7 -7 ------- Run | Yrd Mat Min Mat Mat Fac Sto Robot Analysis Total . | . . . . . . . Derelict Logs Recovered 2 | . . 2 . . . . Drone Launches . | . . . . . . . Drone Recoveries . | . . . . . . . Exploration | -11 -10 -10 -9 -8 -7 -7 ------------- Run | Yrd Mat Min Mat Mat Fac Sto Turns Passed 3804 | 132 204 501 432 942 783 810 Spaces Moved 1642 | 81 154 259 176 335 388 249 Core 6 | 1 . . . 5 . . Treads . | . . . . . . . Legs 1521 | 72 154 259 176 330 284 246 Wheels 115 | 8 . . . . 104 3 Hover . | . . . . . . . Flight . | . . . . . . . Fastest Speed 50 | 50 120 120 190 190 115 120 Average Speed 164 | 120 120 183 190 197 130 175 Slowest Speed 500 | 190 120 190 190 500 330 330 Overloaded Moves . | . . . . . . . Propulsion Burnouts . | . . . . . . . Robots Hopped . | . . . . . . . Cave-ins Triggered . | . . . . . . . Exploration Rate (%) 27 | 4 26 61 19 27 14 43 Regions Visited 6 Branch Regions 2 Pre-discovered Areas 1 | . . 1 . . . . Known Exits Taken 3 | . . . 1 1 1 . Unknown Exits Taken 3 | 1 1 1 . . . . Scrap Searched 1 | . . 1 . . . . Spaces Dug 2 | . . . . . . 2 Terrain Destroyed 68 | . . . . 2 37 29 Melee . | . . . . . . . Projectile 13 | . . . . 2 . 11 AOE 55 | . . . . . 37 18 Terrain Rammed . | . . . . . . . Walls Destroyed . | . . . . . . . Machines Disabled . | . . . . . . . Actions | -11 -10 -10 -9 -8 -7 -7 --------- Run | Yrd Mat Min Mat Mat Fac Sto Total 2369 | 99 165 278 257 496 612 462 Wait 374 | . . 8 52 58 167 89 Move 1636 | 80 153 258 175 334 387 249 Hop . | . . . . . . . Pick Up 32 | 1 4 3 3 7 7 7 Fast Attach 42 | 8 1 1 2 13 7 10 Attach 21 | 1 . . 2 6 1 11 Detach 8 | 2 1 1 . 1 1 2 Swap 23 | . 1 . 7 3 4 8 Drop 33 | . 1 1 7 6 11 7 Fire 194 | 7 4 2 9 68 26 78 Melee . | . . . . . . . Ram . | . . . . . . . Kick 6 | . . 4 . . 1 1 Crush . | . . . . . . . Escape Stasis . | . . . . . . . Rewire . | . . . . . . . Trap . | . . . . . . . Miscellaneous . | . . . . . . . Route ------- -11/Scrapyard -10/Materials -10/Mines -9/Materials (discovered 3 exits: *Mat / Min x2) -8/Materials -7/Factory -7/Storage History --------- Turn | Location | Event 9 | -11/Scrapyard | Discovered new exit (range 15) 133 | -11/Scrapyard | Entered Materials 218 | -10/Materials | Discovered new exit (range 15) 312 | -10/Materials | Build established: Mutant 337 | -10/Materials | Entered Mines 352 | -10/Mines | Learned Materials garrison access intel 370 | -10/Mines | Escorted by a lone wolf Derelict 390 | -10/Mines | Learned location of Storage (-7) 474 | -10/Mines | Assembled infested the area 535 | -10/Mines | Learned Materials emergency access door positions 815 | -10/Mines | Discovered new exit (range 9) 838 | -10/Mines | Entered Materials 838 | -9/Materials | Accompanied by 1 ally 838 | -9/Materials | Evolved 2 slots: Utility x2 1238 | -9/Materials | Discovered new exit (range 15) 1250 | -9/Materials | Build established: Scavenger-Mutant 1253 | -9/Materials | Identified exit to Mines 1267 | -9/Materials | Identified exit to Materials 1270 | -9/Materials | Entered another Materials area 1270 | -8/Materials | Evolved 2 slots: Utility x2 1271 | -8/Materials | Loaded intel: 1 garrison access location 1420 | -8/Materials | Destroyed 7 combat bots 1422 | -8/Materials | Lost 5 parts (2n3u) 1528 | -8/Materials | Lost 5 parts (1p1n3w) 1719 | -8/Materials | Repaired Aluminum Leg 1891 | -8/Materials | Core integrity fell below 50% 1959 | -8/Materials | Discovered new exit (range 9) 1972 | -8/Materials | Identified exit to Factory 2212 | -8/Materials | Entered Factory 2212 | -7/Factory | Evolved 2 slots: Utility x2 2899 | -7/Factory | Build established: Scavenger-Skirmisher 2958 | -7/Factory | Discovered new exit (range 19) 2993 | -7/Factory | Identified exit to Storage 2995 | -7/Factory | Entered Storage 3050 | -7/Storage | Core integrity fell below 50% 3316 | -7/Storage | Build established: Scavenger-Mutant 3400 | -7/Storage | Lost 6 parts (2p1n1u2w) 3633 | -7/Storage | Core integrity fell below 20% 3677 | -7/Storage | Lost 6 parts (1p2u3w) 3805 | -7/Storage | Destroyed by P-60 Hacker with Shock Rifle Last Messages --------------- Slug penetrates Wall. Penetrated by Slug. Storage Shell breached. K-01 Serf collects debris. Penetrated by Slug. K-01 Serf collects debris. U-05 Engineer builds a Wall. Penetrated by Slug. K-01 Serf collects debris. Spread Laser destroyed. Penetrated by Slug. H-55 Commando destroyed. U-05 Engineer builds a Door. G-47 Trooper destroyed. System corrupted: Component data lost. Acquired 27 matter. Connecting with Terminal... Feedback: System corruption (+1%). ALERT: Suspicious activity at Terminal S014. Dispatching Investigation squad. Map ----- +----------------------------------------------------+ | | | ??????????????????????????????????????????? | | ??????????????????????????????????????????? | | ??????????????????????????????????????????? | | ??????????????????????????????????????????? | | ??????????????????????????????????????????? | | ??????????????????????????????????????????? | | ??????????????????????????????????????????? | | ??????????????????????????????????????????? | | ????????????????###### ???????????????????? | | ????????????????#######???????????????????? | | ???????????????? # ???????????????????? | | ????????????????? # ???????????????????? | | ???????????????? # ???????????????????? | | ????????????????## # ???????????????????? | | ????????????????## # ???????????????????? | | ???????????????? # # ???????????????????? | | ???????????????? # # ?????w?????????????? | | ???????????????? # # ???????????????????? | | ???????????????? + # ???????????????????? | | ???????????????? # ##???????????????????? | | ???????????????? # ???????????????????? | | ???????????????? # ???????????????????? ? | | ?????????????? / ???????? ???????? | | ??????????????#####+######????????????????? | | ????????????#### @ ##????????????????? | | ????????????#### """###############???? | | ????????????##"" """###############???? | | ????????????##"" """#### ###??? | | ????????????##"T """#### ""###??? | | ????????????##"" """### "###### | | ????????????##"" ####= *%" ###### | | ????????????#### ###! | ! ! "% | | ????????????#### #### !!= !####% | | ????????##########/######### = = ### | | ????????##########p######### %% ### | | ????????##====" # #############+######### | | ????????## # % ##?# | | ????????##====" +k ##?# | | ????????###??##T## ##?# | | ????????###??#######+#/#### ##?# | | ?????????????##### # #### | | ????????????????## + | | ????????????????## " " ########## | | ????????????????## """"!" ########## | | ????????????????## ?????" ##??????## | | ????????????????## ?????? ###??#???# | | ????????????????## ???????????????###+#### | | ????????????????## ??????????? ???# ## | | ??????????????????????????????????# ## | +----------------------------------------------------+ Best States ------------- Heat Dissipation 62 Energy Generation 16 Energy Capacity 290 Matter Stores 300 Matter Capacity 300 Sight Range 20 Robot Scan Range 15 Terrain Scan Range 16 Terrain Scan Density 10 Additional Mass Support 12 Armor Coverage 300 Evasion (%) 55 Offensive Hacking 10 Item Schematics ----------------- None Robot Schematics ------------------ None Fabricated ------------ Nothing Alien Tech Used ----------------- None Achievements -------------- None Challenges ------------ None Game ------ Seed ThrusterOmegaSlayer Manual? 0 Play Time 00:41:17 Cumulative 22.4 hours Start 2025.01.06 @ 22:13:39 End 2025.01.06 @ 22:56:02 Sessions 1 Manual Loads 0 Difficulty Rogue Special Mode None Game No. 30 Rogue 13 Adventurer 16 Explorer 1 Win Type - Total 3 Types 3/0/0/0/0/0/0/0/0 Lore% 4 Gallery% 29 Achievement% 31 Wizard Run 0 Options --------- Layout 1 ASCII 0 Keyboard 0 Movement Mouse Keybinds 0 Fullscreen 1 Font 24/Smallcaps Map View 50x35 Zoom Use 0% Tactical HUD 0 Map Filters NONE Filters NONE Steam 1 RUN: 65f08fac-2ec5-4cbd-b8be-773ba361e79a